bitfinex/quotes_SOLUSD_20241209
["timestamp","ask_amount","ask_price","bid_price","bid_amount"]
[1733773756569,13.25320018,223.3,223.24,1.5807]
[1733773756786,13.25320018,223.29,223.24,1.5807]
[1733773757082,14.09301559,223.28,223.21,13.25320018]
[1733773757670,13.25320018,223.28,223.21,13.25320018]
[1733773757923,13.25320018,223.29,223.22,13.25320018]
[1733773758091,12.41500303,223.33,223.28,13.25320018]
[1733773758251,13.25320018,223.35,223.28,13.25320018]
[1733773758670,0.83961092,223.34,223.28,13.25320018]
[1733773758853,13.25320018,223.35,223.28,0.12549]
[1733773759050,13.25320018,223.34,223.28,0.12549]
[1733773759274,13.25320018,223.35,223.28,13.37869018]
[1733773759465,13.25320018,223.36,223.29,13.25320018]
[1733773759654,13.25320018,223.38,223.31,13.37869018]
[1733773759862,13.25320018,223.38,223.32,0.12549]
[1733773760270,13.25320018,223.35,223.28,13.25320018]
[1733773760473,33.78437218,223.41,223.29,0.12549]
[1733773760474,14.09280381,223.34,223.29,0.12549]
[1733773760774,13.25320018,223.34,223.29,0.12549]
[1733773760975,13.25320018,223.35,223.29,0.12549]
[1733773761188,13.25320018,223.39,223.32,13.25320018]
[1733773761364,13.25320018,223.4,223.33,13.25320018]
[1733773761774,13.25320018,223.38,223.31,37.15557418]
[1733773762097,13.25320018,223.35,223.3,1.5291]
[1733773762467,13.25320018,223.36,223.3,1.5291]
[1733773762791,13.25320018,223.37,223.3,14.78230018]
[1733773762979,0.83954557,223.36,223.3,14.78230018]
[1733773763362,13.25320018,223.37,223.3,14.78230018]
[1733773764060,13.25320018,223.38,223.31,37.28106418]
[1733773764260,14.62390153,223.41,223.33,13.37869018]
[1733773764456,14.62390153,223.41,223.34,13.25320018]
[1733773764677,14.62390153,223.41,223.34,0.12549]
[1733773764879,13.25320018,223.4,223.34,0.12549]
[1733773766397,0.531172,223.41,223.3,1.5291]
[1733773766398,13.25320018,223.36,223.3,1.5291]
[1733773766606,13.25320018,223.38,223.31,13.25320018]
[1733773766779,0.83954221,223.37,223.31,13.25320018]
[1733773766967,14.09274239,223.37,223.3,14.78230018]
[1733773767171,13.25320018,223.36,223.3,1.5291]
[1733773767671,13.25320018,223.37,223.3,14.78230018]
[1733773768269,13.25320018,223.35,223.3,1.5291]
[1733773768470,0.83962751,223.34,223.3,1.5291]
[1733773769084,13.25320018,223.37,223.3,1.5291]
[1733773769302,13.25320018,223.39,223.33,0.12549]
[1733773769734,13.25320018,223.4,223.33,0.12549]
[1733773770020,0.531172,223.41,223.35,0.12549]
[1733773770021,13.78437218,223.41,223.35,0.12549]
[1733773770220,13.78437218,223.41,223.32,13.37869018]
[1733773770221,13.25320018,223.39,223.32,13.37869018]
[1733773770387,14.09263486,223.38,223.32,0.12549]
[1733773770717,14.09263486,223.38,223.3,1.5291]
[1733773770718,13.25320018,223.36,223.3,1.5291]
[1733773770891,14.09280042,223.35,223.3,1.5291]
[1733773771594,13.25320018,223.34,223.3,1.5291]
[1733773772193,13.25320018,223.36,223.3,1.5291]
[1733773772393,0.83958418,223.35,223.3,1.5291]
[1733773772700,13.25320018,223.37,223.3,1.5291]
[1733773773593,13.25320018,223.37,223.3,14.78230018]
[1733773773786,0.83952076,223.36,223.3,1.5291]
[1733773775215,13.25320018,223.38,223.31,13.25320018]
[1733773775409,20.0,223.35,223.3,14.78230018]
[1733773775600,20.0,223.35,223.3,1.5291]
[1733773776503,14.0927542,223.34,223.26,46.76030018]
[1733773776819,13.25320018,223.3,223.26,6.6271]
[1733773776990,13.25320018,223.29,223.25,1.602]
[1733773777712,0.8398085,223.28,223.25,1.602]
[1733773778425,13.25320018,223.29,223.25,1.602]
[1733773778598,13.25320018,223.32,223.25,14.85520018]
[1733773778799,20.0,223.29,223.25,14.85520018]
[1733773779223,0.83973516,223.31,223.25,14.85520018]
[1733773780452,20.0,223.3,223.27,13.37869018]
[1733773780924,20.0,223.31,223.27,0.12549]
[1733773781101,20.0,223.3,223.25,14.85520018]
[1733773781423,20.0,223.3,223.26,0.12549]
[1733773782308,14.09295483,223.3,223.25,1.602]
[1733773782619,0.83980482,223.29,223.25,1.602]
[1733773783518,14.093005,223.29,223.25,1.602]
[1733773784030,13.25320018,223.3,223.25,1.602]
[1733773784402,13.25320018,223.31,223.25,1.602]
[1733773784607,13.25320018,223.33,223.26,13.37869018]
[1733773784808,14.0928834,223.33,223.26,13.37869018]
[1733773785829,13.25320018,223.32,223.26,0.12549]
[1733773786141,14.09290904,223.33,223.26,13.37869018]
[1733773786300,13.25320018,223.37,223.3,13.37869018]
[1733773786506,13.25320018,223.38,223.31,13.25320018]
[1733773786736,13.25320018,223.39,223.32,13.25320018]
[1733773786904,13.25320018,223.39,223.33,0.12549]
[1733773787106,13.25320018,223.4,223.33,0.12549]
[1733773788032,0.531172,223.41,223.33,0.12549]
[1733773788033,13.78437218,223.41,223.35,0.12549]
[1733773788232,13.78437218,223.41,223.35,24.027864]
[1733773789316,0.531172,223.41,223.36,13.25320018]
[1733773789632,20.0,223.4,223.35,37.28106418]
[1733773790208,20.0,223.4,223.37,0.12549]
[1733773790436,20.0,223.4,223.35,37.15557418]
[1733773790612,20.0,223.4,223.35,23.902374]
[1733773791846,34.09254346,223.4,223.34,1.6072]
[1733773792525,13.25320018,223.39,223.34,1.6072]
[1733773792849,14.09265167,223.39,223.34,1.6072]
[1733773793214,0.83945149,223.39,223.34,1.6072]
[1733773793743,13.25320018,223.38,223.34,1.6072]
[1733773794444,13.25320018,223.39,223.34,1.6072]
[1733773794647,0.83947166,223.38,223.34,1.6072]
[1733773795251,13.25320018,223.4,223.34,1.6072]
[1733773795538,0.83943193,223.39,223.34,1.6072]
[1733773795749,20.0,223.38,223.34,1.6072]
[1733773796713,13.78437218,223.41,223.34,14.86040018]
[1733773796914,0.531172,223.41,223.35,37.28106418]
[1733773797843,14.62370359,223.41,223.35,24.027864]
[1733773798152,14.62370359,223.41,223.33,0.12549]
[1733773798153,13.25320018,223.38,223.33,0.12549]
[1733773798723,13.25320018,223.39,223.33,0.25098]
[1733773799056,0.8394448,223.38,223.33,0.25098]
[1733773799554,13.25320018,223.39,223.33,0.25098]
[1733773799726,13.25320018,223.39,223.33,27.14098]
[1733773800352,0.8394584,223.38,223.33,0.25098]
[1733773800519,13.25320018,223.4,223.33,13.50418018]
[1733773800720,14.09261508,223.39,223.33,0.25098]
[1733773801022,14.09261508,223.39,223.32,23.776884]
[1733773801248,13.25320018,223.37,223.31,6.3182]
[1733773801421,13.25320018,223.38,223.31,6.3182]
[1733773801750,0.83952181,223.37,223.31,6.3182]
[1733773802259,14.09272199,223.37,223.31,6.3182]
[1733773802549,13.25320018,223.38,223.32,0.12549]
[1733773802849,20.0,223.37,223.33,13.25320018]
[1733773803054,13.25320018,223.4,223.33,13.25320018]
[1733773803760,14.09261587,223.39,223.32,37.28106418]
[1733773804550,13.78437218,223.41,223.34,0.12549]
[1733773804750,13.78437218,223.41,223.34,13.25320018]
[1733773804936,13.78437218,223.41,223.33,13.37869018]
[1733773805337,13.78437218,223.41,223.35,0.12549]
[1733773805644,0.531172,223.41,223.37,0.12549]
[1733773806563,13.25320018,223.38,223.33,23.902374]
[1733773806765,13.25320018,223.38,223.34,0.12549]
[1733773806934,1.37046179,223.41,223.36,13.37869018]
[1733773806935,0.531172,223.41,223.36,13.37869018]
[1733773807261,0.531172,223.41,223.38,23.902374]
[1733773807565,0.531172,223.41,223.33,27.22449704]
[1733773807566,13.25320018,223.4,223.35,23.902374]
[1733773807926,13.25320018,223.39,223.35,0.12549]
[1733773808133,14.09259406,223.38,223.32,23.776884]
[1733773808327,13.78437218,223.41,223.33,13.50418018]
[1733773808550,13.78437218,223.41,223.35,24.027864]
[1733773808762,0.531172,223.41,223.37,23.902374]
[1733773808964,0.531172,223.41,223.37,24.027864]
[1733773809127,0.531172,223.41,223.35,40.14320018]
[1733773809333,13.25320018,223.4,223.34,23.902374]
[1733773809871,13.25320018,223.4,223.35,23.902374]
[1733773810056,13.78437218,223.41,223.35,23.902374]
[1733773810237,0.531172,223.41,223.35,23.902374]
[1733773810434,0.531172,223.41,223.35,37.15557418]
[1733773810640,20.531172,223.41,223.37,23.902374]
[1733773810838,0.531172,223.41,223.39,24.027864]
[1733773811349,0.531172,223.41,223.39,0.25098]
[1733773811755,0.531172,223.41,223.39,13.50418018]
[1733773811960,0.531172,223.41,223.4,37.15557418]
[1733773812273,0.531172,223.41,223.4,0.12549]
[1733773812980,0.531172,223.41,223.38,1.6109]
[1733773813668,0.531172,223.41,223.39,37.28106418]
[1733773813968,0.531172,223.41,223.4,37.28106418]
[1733773815168,0.531172,223.41,223.4,44.17419736]
[1733773815373,0.83902815,223.56,223.45,24.027864]
[1733773815374,13.25320018,223.52,223.45,24.027864]
[1733773815540,13.25320018,223.5,223.45,24.027864]
[1733773815739,13.25320018,223.5,223.45,0.12549]
[1733773816172,13.25320018,223.52,223.45,0.12549]
[1733773816470,13.25320018,223.53,223.47,0.12549]
[1733773816769,13.25320018,223.55,223.48,37.28106418]
[1733773817746,13.27312374,223.58,223.48,37.28106418]
[1733773817747,26.52632392,223.58,223.52,0.12549]
[1733773818169,13.25320018,223.59,223.52,13.37869018]
[1733773818473,13.25320018,223.59,223.53,0.12549]
[1733773819160,13.25320018,223.6,223.54,0.12549]
[1733773819374,13.25320018,223.62,223.56,0.12549]
[1733773819945,13.25320018,223.62,223.57,0.12549]
[1733773820280,0.531172,223.64,223.57,0.12549]
[1733773820281,0.531172,223.64,223.59,0.12549]
[1733773820463,0.531172,223.64,223.59,0.25098]
[1733773820464,13.78437218,223.64,223.59,0.25098]
[1733773820975,13.78437218,223.64,223.58,0.25098]
[1733773821581,13.25320018,223.62,223.58,0.12549]
[1733773821879,13.25320018,223.61,223.57,1.5123]
[1733773822258,13.25320018,223.62,223.58,0.25098]
[1733773822571,13.25320018,223.62,223.57,1.5123]
[1733773822772,13.25320018,223.61,223.57,1.5123]
[1733773823073,13.25320018,223.62,223.58,0.12549]
[1733773823283,0.531172,223.64,223.58,0.25098]
[1733773823445,20.531172,223.64,223.61,0.12549]
[1733773823646,0.531172,223.64,223.61,0.12549]
[1733773824564,0.531172,223.64,223.63,24.027864]
[1733773824765,0.531172,223.64,223.63,0.25098]
[1733773825073,13.78437218,223.64,223.59,23.776884]
[1733773825282,13.78437218,223.64,223.6,0.12549]
[1733773825283,13.25320018,223.63,223.6,0.12549]
[1733773825454,13.78437218,223.64,223.6,0.12549]
[1733773825778,13.25320018,223.62,223.57,1.5123]
[1733773826144,0.531172,223.64,223.58,13.37869018]
[1733773826346,13.78437218,223.64,223.58,0.25098]
[1733773826575,13.78437218,223.64,223.58,24.027864]
[1733773828276,0.531172,223.64,223.59,13.25320018]
[1733773828482,0.531172,223.64,223.61,37.28106418]
[1733773828777,0.531172,223.64,223.63,0.25098]
[1733773829179,0.531172,223.64,223.59,0.12549]
[1733773829180,13.78437218,223.64,223.59,0.12549]
[1733773829565,0.531172,223.64,223.59,27.14098]
[1733773829761,13.78437218,223.64,223.61,0.12549]
[1733773830865,13.25320018,223.63,223.57,1.5123]
[1733773831200,13.25320018,223.59,223.52,21.14670018]
[1733773831492,13.25320018,223.58,223.52,7.8935]
[1733773831807,13.25320018,223.54,223.47,6.6127]
[1733773831966,13.25320018,223.54,223.47,19.86590018]
[1733773832385,13.25320018,223.53,223.47,6.6127]
[1733773832572,13.25320018,223.52,223.47,6.6127]
[1733773832889,13.25320018,223.52,223.46,28.3901]
[1733773833107,13.25320018,223.52,223.47,0.12549]
[1733773833396,13.25320018,223.52,223.46,28.3901]
[1733773833978,13.25320018,223.52,223.47,23.902374]
[1733773834569,13.25320018,223.52,223.48,0.12549]
[1733773835086,13.25320018,223.53,223.48,0.12549]
[1733773835280,13.25320018,223.54,223.48,0.12549]
[1733773835492,13.25320018,223.52,223.48,0.12549]
[1733773835664,13.25320018,223.5,223.48,0.12549]
[1733773836174,13.25320018,223.5,223.44,23.902374]
[1733773836579,13.25320018,223.51,223.45,0.12549]
[1733773836808,13.25320018,223.5,223.45,0.12549]
[1733773836972,13.25320018,223.52,223.45,13.37869018]
[1733773837172,13.25320018,223.53,223.47,0.25098]
[1733773837513,13.25320018,223.56,223.5,24.027864]
[1733773838188,13.25320018,223.55,223.5,24.027864]
[1733773838379,13.25320018,223.55,223.5,0.12549]
[1733773838585,13.25320018,223.53,223.49,0.12549]
[1733773839481,13.25320018,223.53,223.47,24.027864]
[1733773839680,13.25320018,223.54,223.47,37.28106418]
[1733773839885,13.25320018,223.55,223.49,0.12549]
[1733773840088,13.25320018,223.57,223.51,0.12549]
[1733773840606,14.82090018,223.63,223.48,13.25320018]
[1733773840607,13.25320018,223.55,223.48,13.25320018]
[1733773840810,13.25320018,223.54,223.49,23.902374]
[1733773841114,13.25320018,223.54,223.5,0.12549]
[1733773841609,13.25320018,223.54,223.49,0.25098]
[1733773841902,13.25320018,223.53,223.49,0.25098]
[1733773842109,13.25320018,223.54,223.49,0.25098]
[1733773842722,13.25320018,223.55,223.49,0.25098]
[1733773843222,13.25320018,223.57,223.51,0.12549]
[1733773843383,13.25320018,223.57,223.51,24.027864]
[1733773843581,13.25320018,223.56,223.51,24.027864]
[1733773844088,13.25320018,223.56,223.49,13.25320018]
[1733773844089,13.25320018,223.56,223.5,24.027864]
[1733773844529,13.25320018,223.55,223.5,0.12549]
[1733773845227,0.83879182,223.62,223.5,0.12549]
[1733773845228,13.25320018,223.56,223.5,0.12549]
[1733773845802,14.82090018,223.63,223.5,0.12549]
[1733773845803,13.25320018,223.53,223.5,0.12549]
[1733773846723,13.25320018,223.53,223.48,24.027864]
[1733773847310,0.83885865,223.52,223.46,23.776884]
[1733773847517,13.25320018,223.49,223.42,19.86590018]
[1733773847714,13.25320018,223.47,223.42,6.6127]
[1733773847924,13.25320018,223.45,223.41,1.5398]
[1733773848121,13.25320018,223.45,223.42,0.12549]
[1733773848322,13.25320018,223.45,223.41,1.5398]
[1733773850122,13.25320018,223.46,223.41,1.5398]
[1733773850335,13.25320018,223.47,223.41,1.5398]
[1733773850526,14.09236798,223.46,223.41,1.5398]
[1733773851117,13.25320018,223.44,223.41,1.5398]
[1733773851441,13.25320018,223.42,223.37,6.1647]
[1733773851741,13.25320018,223.42,223.38,0.12549]
[1733773851909,13.25320018,223.4,223.34,1.5239]
[1733773852111,13.25320018,223.37,223.34,1.5239]
[1733773852808,13.25320018,223.37,223.32,6.2195]
[1733773853233,13.25320018,223.37,223.3,13.25320018]
[1733773853809,5.0,223.43,223.29,14.80770018]
[1733773854013,5.0,223.43,223.29,1.5545]
[1733773854014,13.25320018,223.32,223.29,1.5545]
[1733773854538,13.25320018,223.41,223.21,26.89]
[1733773854539,13.25320018,223.3,223.24,1.5545]
[1733773855141,13.25320018,223.35,223.28,13.37869018]
[1733773855311,13.25320018,223.35,223.24,1.5545]
[1733773855312,13.25320018,223.37,223.31,0.12549]
[1733773855510,13.25320018,223.36,223.31,0.12549]
[1733773856053,13.25320018,223.35,223.3,24.027864]
[1733773856206,13.25320018,223.35,223.3,0.12549]
[1733773857139,13.25320018,223.35,223.29,0.12549]
[1733773857638,13.25320018,223.39,223.33,0.25098]
[1733773857838,13.25320018,223.4,223.33,37.28106418]
[1733773858244,13.25320018,223.41,223.35,24.027864]
[1733773858447,13.25320018,223.43,223.37,0.12549]
[1733773858649,13.25320018,223.47,223.4,0.25098]
[1733773858822,13.25320018,223.47,223.4,24.027864]
[1733773859649,13.25320018,223.44,223.39,0.25098]
[1733773860024,13.25320018,223.45,223.39,0.25098]
[1733773860719,13.25320018,223.44,223.39,0.25098]
[1733773860925,13.25320018,223.44,223.38,0.12549]
[1733773861127,13.25320018,223.43,223.38,0.25098]
[1733773861563,13.25320018,223.44,223.38,0.25098]
[1733773862422,13.25320018,223.48,223.42,0.12549]
[1733773862623,20.0,223.46,223.43,23.902374]
[1733773862920,13.25320018,223.44,223.38,0.12549]
[1733773863152,13.25320018,223.43,223.38,0.12549]
[1733773863656,13.25320018,223.44,223.38,0.12549]
[1733773864028,13.25320018,223.43,223.38,0.12549]
[1733773864462,13.25320018,223.44,223.38,0.12549]
[1733773864640,13.25320018,223.44,223.4,0.12549]
[1733773865436,33.25320018,223.46,223.4,0.12549]
[1733773865637,20.0,223.46,223.42,0.12549]
[1733773866231,13.25320018,223.48,223.42,0.12549]
[1733773866759,13.25320018,223.48,223.41,37.15557418]
[1733773866760,13.25320018,223.45,223.39,23.776884]
[1733773867062,13.25320018,223.46,223.4,0.25098]
[1733773867365,13.25320018,223.5,223.44,0.25098]
[1733773867557,13.25320018,223.51,223.44,15.16518018]
[1733773867733,13.25320018,223.51,223.46,0.12549]
[1733773867927,13.25320018,223.49,223.46,0.12549]
[1733773870538,13.25320018,223.5,223.46,0.12549]
[1733773871147,13.25320018,223.49,223.46,0.12549]
[1733773871659,13.25320018,223.51,223.46,0.12549]
[1733773872841,13.25320018,223.5,223.46,0.12549]
[1733773873059,13.25320018,223.47,223.45,23.776884]
[1733773873366,14.09235759,223.46,223.39,1.661]
[1733773873661,13.25320018,223.43,223.39,1.661]
[1733773874159,13.25320018,223.44,223.39,1.661]
[1733773874334,14.09247259,223.43,223.39,1.661]
[1733773874738,13.25320018,223.43,223.39,1.661]
[1733773875142,13.25320018,223.44,223.39,1.661]
[1733773875751,13.25320018,223.43,223.4,23.776884]
[1733773876335,13.25320018,223.41,223.34,1.5021]
[1733773876666,13.25320018,223.41,223.23,152.0]
[1733773876667,20.0,223.35,223.25,0.33474178]
[1733773876836,13.25320018,223.32,223.22,1.5021]
[1733773877041,13.25320018,223.32,223.24,13.25320018]
[1733773877958,0.83965607,223.31,223.24,13.25320018]
[1733773878162,13.25320018,223.29,223.22,1.5021]
[1733773878468,13.25320018,223.28,223.22,1.5021]
[1733773878634,13.25320018,223.28,223.23,0.12549]
[1733773879159,13.25320018,223.28,223.2,46.65840018]
[1733773879160,13.25320018,223.26,223.2,6.5152]
[1733773879345,13.25320018,223.27,223.21,0.12549]
[1733773879866,13.25320018,223.28,223.21,0.12549]
[1733773880236,13.25320018,223.28,223.21,24.027864]
[1733773880458,13.25320018,223.27,223.21,24.027864]
[1733773880669,0.83986999,223.26,223.21,24.027864]
[1733773881257,0.83986999,223.26,223.21,23.902374]
[1733773881462,13.25320018,223.27,223.21,23.902374]
[1733773882552,13.25320018,223.25,223.21,23.902374]
[1733773882753,13.25320018,223.24,223.18,23.902374]
[1733773882968,13.25320018,223.26,223.19,0.12549]
[1733773883547,13.25320018,223.28,223.21,24.027864]
[1733773883744,13.25320018,223.27,223.21,24.027864]
[1733773883946,13.25320018,223.27,223.21,0.25098]
[1733773885969,6.2537,223.34,223.21,0.12549]
[1733773885970,13.25320018,223.25,223.21,0.12549]
[1733773886178,13.25320018,223.25,223.2,0.12549]
[1733773886341,13.25320018,223.25,223.19,0.25098]
[1733773886541,13.25320018,223.25,223.19,24.027864]
[1733773886836,13.25320018,223.26,223.19,24.027864]
[1733773887647,13.25320018,223.27,223.21,24.027864]
[1733773888746,13.25320018,223.26,223.21,24.027864]
[1733773888947,13.25320018,223.27,223.21,24.027864]
[1733773889764,13.25320018,223.27,223.22,0.12549]
[1733773889967,13.25320018,223.27,223.22,0.25098]
[1733773890481,13.25320018,223.26,223.22,0.25098]
[1733773890654,13.25320018,223.26,223.2,24.027864]
[1733773891056,13.25320018,223.27,223.2,37.28106418]
[1733773891260,20.0,223.27,223.24,23.902374]
[1733773891458,13.25320018,223.26,223.24,23.776884]
[1733773891662,13.25320018,223.25,223.24,23.776884]
[1733773893377,13.25320018,223.25,223.16,14.80250018]
[1733773893691,13.25320018,223.22,223.17,0.12549]
[1733773893857,13.25320018,223.2,223.16,1.5493]
[1733773894250,13.25320018,223.17,223.1,14.84040018]
[1733773894450,14.09343614,223.16,223.1,1.5872]
[1733773894951,13.25320018,223.15,223.11,0.12549]
[1733773895569,13.25320018,223.18,223.11,13.25320018]
[1733773895884,13.25320018,223.22,223.15,0.12549]
[1733773896964,13.25320018,223.22,223.15,24.027864]
[1733773897377,13.25320018,223.24,223.18,24.027864]
[1733773897578,0.84004383,223.26,223.18,24.027864]
[1733773897579,13.25320018,223.25,223.18,13.50418018]
[1733773897863,13.25320018,223.25,223.2,0.12549]
[1733773899176,13.25320018,223.25,223.2,0.25098]
[1733773899591,13.25320018,223.26,223.2,0.25098]
[1733773899894,13.25320018,223.26,223.22,0.25098]
[1733773901065,0.83990862,223.33,223.22,0.25098]
[1733773901066,13.25320018,223.25,223.22,0.25098]
[1733773901892,13.25320018,223.26,223.22,0.25098]
[1733773902093,13.25320018,223.27,223.22,0.25098]
[1733773903783,13.25320018,223.26,223.22,0.25098]
[1733773903985,13.25320018,223.25,223.21,23.776884]
[1733773904289,13.25320018,223.23,223.21,23.776884]
[1733773904666,13.25320018,223.24,223.21,23.776884]
[1733773904866,13.25320018,223.25,223.21,23.776884]
[1733773905191,13.25320018,223.25,223.19,24.027864]
[1733773905790,13.25320018,223.24,223.19,24.027864]
[1733773905987,13.25320018,223.2,223.12,26.89]
[1733773906175,13.25320018,223.19,223.13,0.12549]
[1733773907282,13.25320018,223.19,223.12,13.25320018]
[1733773907961,13.25320018,223.18,223.11,13.25320018]
[1733773908396,13.25320018,223.18,223.12,0.12549]
[1733773908596,13.25320018,223.19,223.12,13.37869018]
[1733773908897,0.8401654,223.25,223.1,28.4772]
[1733773908898,13.25320018,223.18,223.11,13.37869018]
[1733773909063,13.25320018,223.18,223.12,23.776884]
[1733773909406,13.25320018,223.16,223.12,0.25098]
[1733773909696,13.25320018,223.16,223.1,28.4772]
[1733773909697,13.25320018,223.13,223.06,13.25320018]
[1733773909870,13.25320018,223.13,223.05,13.25320018]
[1733773910069,13.25320018,223.11,223.06,0.12549]
[1733773910288,13.25320018,223.1,223.03,14.75740018]
[1733773910459,13.25320018,223.1,223.03,1.5042]
[1733773910660,13.25320018,223.1,223.04,0.12549]
[1733773910880,13.25320018,223.11,223.04,13.37869018]
[1733773911080,13.25320018,223.1,223.04,0.12549]
[1733773911366,13.25320018,223.1,223.03,1.5042]
[1733773911573,13.25320018,223.1,223.03,14.75740018]
[1733773911889,13.25320018,223.1,223.04,0.12549]
[1733773912702,13.25320018,223.11,223.06,0.12549]
[1733773912884,13.25320018,223.12,223.06,0.12549]
[1733773913202,13.25320018,223.11,223.06,0.12549]
[1733773913506,13.25320018,223.12,223.06,0.12549]
[1733773913713,13.25320018,223.1,223.04,24.027864]
[1733773914220,13.25320018,223.11,223.04,24.027864]
[1733773914808,13.25320018,223.1,223.04,24.027864]
[1733773915314,13.25320018,223.11,223.04,37.28106418]
[1733773915687,0.84049029,223.16,223.04,37.28106418]
[1733773915688,13.25320018,223.13,223.06,0.12549]
[1733773916013,0.84049029,223.16,223.06,0.12549]
[1733773916014,13.25320018,223.12,223.06,24.027864]
[1733773916394,13.25320018,223.1,223.03,1.5042]
[1733773916713,13.25320018,223.08,223.0,13.25320018]
[1733773916889,13.25320018,223.06,222.99,13.86990018]
[1733773917213,13.25320018,223.06,223.0,0.12549]
[1733773917513,13.25320018,223.06,222.99,0.6167]
[1733773917724,13.25320018,223.05,222.99,0.6167]
[1733773917890,13.25320018,223.06,223.0,0.25098]
[1733773918212,13.25320018,223.06,223.0,0.12549]
[1733773918616,13.25320018,223.07,223.0,13.25320018]
[1733773918914,13.25320018,223.07,222.99,37.03008418]
[1733773919300,14.09384632,223.06,222.99,23.776884]
[1733773919501,14.09384632,223.06,223.0,0.12549]
[1733773919707,13.25320018,223.07,223.0,0.12549]
[1733773919904,0.84068423,223.06,223.0,0.12549]
[1733773920203,14.09388441,223.06,222.99,35.65557418]
[1733773920409,13.25320018,223.06,222.99,35.65557418]
[1733773920583,13.25320018,223.07,223.0,13.25320018]
[1733773920780,14.0938858,223.1,223.03,13.25320018]
[1733773920985,13.25320018,223.1,223.03,13.25320018]
[1733773921187,13.25320018,223.11,223.03,13.25320018]
[1733773921426,13.25320018,223.12,223.05,13.25320018]
[1733773922101,0.84050366,223.14,223.07,0.12549]
[1733773922102,13.25320018,223.13,223.07,0.12549]
[1733773922304,13.25320018,223.14,223.07,37.15557418]
[1733773922513,14.09363497,223.18,223.11,23.776884]
[1733773922702,13.25320018,223.17,223.11,23.776884]
[1733773922907,13.25320018,223.12,223.11,23.776884]
[1733773923427,13.25320018,223.14,223.11,23.776884]
[1733773923919,13.25320018,223.16,223.11,23.776884]
[1733773924096,13.25320018,223.16,223.02,1.90560385]
[1733773924097,13.25320018,223.16,223.09,37.15557418]
[1733773924825,13.25320018,223.16,223.09,23.902374]
[1733773926887,33.25320018,223.13,223.02,1.5689]
[1733773927089,13.25320018,223.1,223.03,13.25320018]
[1733773928294,13.25320018,223.1,223.05,0.12549]
[1733773929022,13.25320018,223.1,223.04,23.776884]
[1733773929914,13.25320018,223.11,223.05,0.12549]
[1733773930119,13.25320018,223.11,223.05,23.902374]
[1733773930826,0.84046785,223.12,223.04,13.25320018]
[1733773930827,13.25320018,223.1,223.04,0.12549]
[1733773930992,13.25320018,223.08,223.03,23.776884]
[1733773931534,13.25320018,223.08,223.02,0.12549]
[1733773932217,13.25320018,223.08,223.02,0.25098]
[1733773932517,13.25320018,223.06,222.98,19.90140018]
[1733773932813,14.0938787,223.05,222.99,0.12549]
[1733773932997,14.0938787,223.05,222.99,0.25098]
[1733773933191,14.0938787,223.05,222.9,1.76315087]
[1733773933192,0.84067852,223.05,222.9,1.76315087]
[1733773933427,13.25320018,222.92,222.85,0.531172]
[1733773933632,13.25320018,222.88,222.85,0.531172]
[1733773933925,13.25320018,222.89,222.85,0.531172]
[1733773934449,20.0,222.86,222.85,0.531172]
[1733773934610,13.25320018,222.9,222.85,0.531172]
[1733773934799,13.25320018,222.88,222.85,0.531172]
[1733773935000,0.84141019,222.87,222.85,0.531172]
[1733773935219,13.25320018,222.87,222.85,0.531172]
[1733773935425,20.0,222.94,222.85,0.531172]
[1733773935426,13.25320018,222.89,222.85,0.531172]
[1733773935912,14.09452102,222.93,222.85,13.78437218]
[1733773936601,0.84132084,222.93,222.87,13.25320018]
[1733773936936,20.0,222.92,222.87,13.25320018]
[1733773937103,20.0,222.92,222.85,0.531172]
[1733773937104,13.25320018,223.0,222.91,13.25320018]
[1733773937294,0.84103107,222.99,222.91,13.25320018]
[1733773937495,0.84103107,222.99,222.93,13.25320018]
[1733773938338,14.09413266,223.03,222.95,37.03008418]
[1733773938633,14.0940297,223.04,222.97,23.902374]
[1733773938817,13.25320018,223.03,222.97,23.902374]
[1733773939018,13.25320018,223.01,222.94,13.25320018]
[1733773939339,22.11587354,223.02,222.95,45.0519709]
[1733773939632,21.2750869,222.98,222.91,21.2750869]
[1733773939928,22.11609953,222.97,222.9,21.2750869]
[1733773940135,22.11609953,222.97,222.91,23.776884]
[1733773940296,22.11609953,222.97,222.9,23.902374]
[1733773940501,21.2750869,222.95,222.9,23.902374]